Cogmind - Beta 12 X4 @@@ ROGUE MODE // 2022.11.30 @ 01:41:56 Player: Lunatic Blue Result: Destroyed by 8R-AWN with 8R-AWN's Boregun Performance ------------- Evolutions (1) 500 Regions Visited (4) 800 Robots Destroyed (32) 160 Value Destroyed (949) 949 Prototype IDs (2) 40 Alien Tech Used (0) 0 Bonus (166) 166 TOTAL SCORE: 2615 Bonus ------- Follower Combat Kills 166 Cogmind --------- Core Integrity 0/400 Matter 12/300 Energy 100/100 System Corruption 1% Temperature Cool (0) Movement Core (700) Ox13 Location -9/Exiles Parts ------- > --- POWER (1) -------- (None) > --- PROPULSION (2) --- (None) > --- UTILITY (3) ------ High-capacity Storage Unit > --- WEAPON (3) ------- (None) > --- INVENTORY (20) --- Nuclear Core Nuclear Core Nuclear Core Heavy EM Pulse Gun EM Shotgun Shock Bomb Launcher Mini Grenade Launcher Mini Grenade Launcher Peak State ------------ > --- POWER ------------ Nuclear Core > --- PROPULSION ------- Light Treads Compact Wheel > --- UTILITY ---------- High-capacity Storage Unit Signal Interpreter Light Armor Plating > --- WEAPON ----------- Assault Rifle Heavy Assault Rifle Autogun > --- INVENTORY -------- Nuclear Core Nuclear Core Nuclear Core Nuclear Core Light Fission Core Light Fission Core Light Treads Light Treads Improved Heat Sink High-capacity Matter Pod Light Armor Plating Insulated Plating Heavy EM Pulse Gun EM Shotgun Assault Rifle Assault Rifle Bore Cannon Shock Bomb Launcher Mini Grenade Launcher Mini Grenade Launcher [Rating: 18] Favorites ----------- Power Nuclear Core Engine Ion Engine Power Core Nuclear Core Propulsion Light Treads Treads Light Treads Wheel Compact Wheel Utility High-capacity Storage Unit Device Heat Sink Storage High-capacity Storage Unit Processor Signal Interpreter Protection Light Armor Plating Weapon Heavy Assault Rifle Ballistic Gun Heavy Assault Rifle Ballistic Cannon Bore Cannon Launcher Mini Grenade Launcher Impact Weapon Hammer Build | -11 -10 -9 -9 -9 ------- Run | Scr Mat Mat Min Exi Slots Evolved 2 | . . 2 . . Power . | . . . . . Propulsion . | . . . . . Utility 1 | . . 1 . . Weapon 1 | . . 1 . . Parts Attached 39 | 6 5 17 . 11 Power 5 | 1 1 3 . . Engine 3 | 1 1 1 . . Core 2 | . . 2 . . Reactor . | . . . . . Propulsion 7 | 2 . 2 . 3 Treads 4 | 1 . 1 . 2 Leg . | . . . . . Wheel 3 | 1 . 1 . 1 Hover . | . . . . . Flight . | . . . . . Utility 10 | 1 2 4 . 3 Device 2 | . . 1 . 1 Storage 2 | 1 1 . . . Processor 1 | . . 1 . . Hackware . | . . . . . Protection 5 | . 1 2 . 2 Artifact . | . . . . . Weapon 17 | 2 2 8 . 5 Energy Gun . | . . . . . Energy Cannon . | . . . . . Ballistic Gun 13 | 2 1 7 . 3 Ballistic Cannon 1 | . . . . 1 Launcher 1 | . . . . 1 Special Weapon . | . . . . . Impact Weapon 2 | . 1 1 . . Slashing Weapon . | . . . . . Piercing Weapon . | . . . . . Special Melee Weapon . | . . . . . Unidentified Prototypes . | . . . . . Parts Lost 20 | . . 6 . 14 Power 1 | . . . . 1 Propulsion 5 | . . 2 . 3 Utility 7 | . . 3 . 4 Weapon 7 | . . 1 . 6 Highest Loss Streak 13 | . . 2 . 13 To Critical Strikes 6 | . . . . 6 Average Slot Usage (%) 96 | . 98 97 100 85 Engine 4 | . 14 4 . . Core 7 | . . 6 11 8 Treads 11 | . 14 11 11 13 Wheel 10 | . 14 10 11 5 Device 3 | . . 8 . . Storage 11 | . 14 11 11 11 Processor 4 | . . . 11 8 Protection 10 | . 12 10 11 9 Ballistic Gun 30 | . 27 32 33 26 Naked Turns . | . . . . . Heaviest Build 60 | 12 52 60 58 58 Greatest Support 20 | 20 16 20 10 16 Greatest Overweight (x) 16 | 1 3 5 5 16 Average Overweight (x) 3 | . 2 3 5 3 Largest Inventory Capacity 20 | 8 20 20 20 20 Average Capacity 19 | 6 17 20 20 20 Most Carried 20 | 4 10 20 20 20 Average Carried 15 | 2 7 16 19 15 Final Capacity 20 | 8 20 20 20 20 Final Carried 20 | 4 10 19 20 8 Class Distribution -------------------- 70% | Tank 23% | Mutant 6% | Scavenger-Tank Dominant Class ---------------- Mutant | -10/Materials Tank | -9/Materials Tank | -9/Mines Scavenger-Tank | -9/Exiles Resources | -11 -10 -9 -9 -9 ----------- Run | Scr Mat Mat Min Exi Matter Collected 1522 | 227 143 806 133 213 Remotely . | . . . . . Salvage Created 1450 | . 204 1060 180 6 Parts 82 | . 8 65 9 . Haulers Intercepted 2 | . . 2 . . Recyclers Shooed 4 | . 1 3 . . Parts Field Recycled . | . . . . . Retrieved Matter . | . . . . . Parts Self-Destructed . | . . . . . Prevented . | . . . . . Kills | -11 -10 -9 -9 -9 ------- Run | Scr Mat Mat Min Exi Combat Hostiles Destroyed 29 | . 4 17 4 4 Guns 26 | . 4 17 4 1 AOE 3 | . . . . 3 Classes Destroyed 8 | . 2 5 . 1 Hauler 2 | . . 2 . . Recycler 4 | . 1 3 . . Watcher 1 | . . 1 . . Swarmer 2 | . . 2 . . Grunt 17 | . 4 10 3 . Duelist 2 | . . 1 1 . Sentry 4 | . . 4 . . Assembled 4 | . . . . 4 Best Kill Streak 7 | . 3 7 2 4 Combat Bots Only 4 | . 2 3 2 4 Max Kills in Single Turn 2 | . 1 1 1 2 Gunslinging . | . . . . . Exploded 2 | . . . . 2 Melee . | . . . . . Uniques/NPCs Destroyed . | . . . . . Combat | -11 -10 -9 -9 -9 -------- Run | Scr Mat Mat Min Exi Damage Taken 2685 | . 24 1006 148 1507 Core 409 | . . 125 18 266 Absorbed by Shields . | . . . . . Core Remaining (%) 100 | 100 100 . . . Volleys Fired 145 | . 12 50 12 71 Largest 3 | . 2 3 3 3 Hottest 69 | . 40 69 66 66 Shots Fired 331 | . 24 151 36 120 Gun 321 | . 24 151 36 110 Cannon 7 | . . . . 7 Launcher 3 | . . . . 3 Special . | . . . . . Kinetic 328 | . 24 151 36 117 Thermal . | . . . . . Explosive 3 | . . . . 3 Electromagnetic . | . . . . . Robot Hit Streak 9 | . 6 9 6 8 Robot Miss Streak 6 | . 4 4 4 6 Penetration Max . | . . . . . Secondary Targets 5 | . 1 1 3 . Max Gunslinging Chain 1 | . 1 1 1 . Shots Hit Robots 206 | . 13 93 23 77 Core Hits 73 | . 9 38 5 21 Critical Kills . | . . . . . Critical Parts Destroyed 1 | . . . 1 . Critical Strikes 2 | . . . 1 1 Destroy 2 | . . . 1 1 Melee Attacks 2 | . 2 . . . Impact 2 | . 2 . . . Slashing . | . . . . . Piercing . | . . . . . Sneak Attacks . | . . . . . Combat Hostiles . | . . . . . Follow-up Attacks . | . . . . . Damage Inflicted 3183 | . 177 1390 374 1242 Guns 2887 | . 172 1390 374 951 Cannons 79 | . . . . 79 Explosions 212 | . . . . 212 Melee . | . . . . . Ramming 5 | . 5 . . . Kinetic 2966 | . 172 1390 374 1030 Thermal . | . . . . . Explosive 212 | . . . . 212 Electromagnetic . | . . . . . Impact . | . . . . . Slashing . | . . . . . Piercing . | . . . . . Highest Corruption 1 | . . 1 1 1 Average Corruption 1 | . . 1 1 1 Corruption Purged . | . . . . . Corruption Blocked . | . . . . . Effects 13 | . . 3 2 8 Message Errors 5 | . . 2 1 2 Matter Fused 1 | . . . . 1 Energy Discharges 2 | . . . 1 1 Data Loss (minor) 2 | . . . . 2 Misfires 1 | . . 1 . . Weapon Failures 2 | . . . . 2 Overload Shots . | . . . . . Overflow Damage 6 | . . . . 6 Projectiles . | . . . . . Explosions 6 | . . . . 6 Melee . | . . . . . Knockbacks 3 | . . . . 3 Impact . | . . . . . Kinetic 3 | . . . . 3 Secondary . | . . . . . Self-Inflicted Damage 2 | . 2 . . . Shots . | . . . . . Rammed 1 | . 1 . . . Targets Rammed 1 | . 1 . . . Kicked . | . . . . . Crushed . | . . . . . Highest Temperature 225 | . 2 60 105 225 Average Temperature 66 | . 2 18 33 109 Received Heat Transfer 450 | . 12 357 81 . Effects 3 | . . . . 3 Interference 3 | . . . . 3 Siege Activations . | . . . . . Robots Corrupted . | . . . . . Combat Hostiles . | . . . . . Parts Fried . | . . . . . Impact Corruptions . | . . . . . Robots Melted . | . . . . . Combat Hostiles . | . . . . . Parts Melted 1 | . . . 1 . Heat Transferred . | . . . . . Parts Sabotaged . | . . . . . Parts Stolen . | . . . . . Parts Stripped . | . . . . . Power Chain Reactions . | . . . . . Missiles Intercepted . | . . . . . Alert | -11 -10 -9 -9 -9 ------- Run | Scr Mat Mat Min Exi Peak Influence 298 | . 143 298 273 . Initial 22 | . . . 22 . Average 103 | . 46 113 130 . Maximum Alert Level 1 | . . 1 1 . Low Security (%) 85 | 100 100 78 88 . Level 1 14 | . . 21 11 . Level 2 . | . . . . . Level 3 . | . . . . . Level 4 . | . . . . . Level 5 . | . . . . . High Security . | . . . . . Max Security . | . . . . . Squads Dispatched 3 | . 2 1 . . Investigation 2 | . 1 1 . . Extermination . | . . . . . Reinforcement 1 | . 1 . . . Assault . | . . . . . Garrison . | . . . . . Intercept . | . . . . . Searches Triggered . | . . . . . Construction Impeded . | . . . . . Haulers Reinforced . | . . . . . Active Scanning Responses . | . . . . . Cargo Convoy Interrupts . | . . . . . Stealth | -11 -10 -9 -9 -9 --------- Run | Scr Mat Mat Min Exi Distress Signals 6 | . 1 5 . . Communications Jammed . | . . . . . Distress Signals . | . . . . . Times Spotted 54 | . 8 26 12 8 Peak Tracking Total 11 | . 2 4 3 11 Tactical Retreats 5 | . 1 . . 4 Traps | -11 -10 -9 -9 -9 ------- Run | Scr Mat Mat Min Exi Traps Triggered 1 | . . 1 . . Indirectly . | . . . . . Trap Hack Attempts . | . . . . . Triggered . | . . . . . Disarmed . | . . . . . Reprogrammed . | . . . . . Reused . | . . . . . Traps Extracted . | . . . . . Installed . | . . . . . Triggered . | . . . . . Exploded 3 | . . . . 3 Machines | -11 -10 -9 -9 -9 ---------- Run | Scr Mat Mat Min Exi Machines Disabled 8 | . . . 2 6 Max in Single Turn 1 | . . . 1 1 Machines Sabotaged . | . . . . . Overloaded Fab Kills . | . . . . . Hacking | -11 -10 -9 -9 -9 --------- Run | Scr Mat Mat Min Exi Machines Accessed 9 | . 3 6 . . Terminals 9 | . 3 6 . . Fabricators . | . . . . . Repair Stations . | . . . . . Recycling Units . | . . . . . Scanalyzers . | . . . . . Garrison Access . | . . . . . Total Hacks 29 | . 12 17 . . Successful 14 | . 8 6 . . Failed 14 | . 4 10 . . Catastrophic 2 | . 1 1 . . Database Lockouts 1 | . . 1 . . Manual 16 | . 6 10 . . Terminals 29 | . 12 17 . . Fabricators . | . . . . . Repair Stations . | . . . . . Recycling Units . | . . . . . Scanalyzers . | . . . . . Garrison Access . | . . . . . Terminal Hacks 12 | . 6 6 . . Robot Analysis 1 | . . 1 . . Prototype ID Bank 1 | . 1 . . . Branch Access Points 2 | . . 2 . . Alert Level 1 | . 1 . . . Unreport Threat 3 | . 1 2 . . Locate Traps 1 | . 1 . . . Zone Layout 3 | . 2 1 . . Fabricator Hacks . | . . . . . Repair Station Hacks . | . . . . . Recycling Unit Hacks . | . . . . . Scanalyzer . | . . . . . Garrison Access Hacks . | . . . . . Unauthorized Hacks 2 | . 2 . . . Terminals 2 | . 2 . . . Botnet 1 | . 1 . . . Operators 1 | . 1 . . . Fabricators . | . . . . . Repair Stations . | . . . . . Recycling Units . | . . . . . Scanalyzers . | . . . . . Garrison Access . | . . . . . Data Cores Recovered . | . . . . . Used . | . . . . . Hacking Detections 8 | . 3 5 . . Full Trace Events 2 | . 1 1 . . Feedback Events 1 | . . 1 . . Corruption 1 | . . 1 . . Feedback Blocked . | . . . . . Robot Schematics Acquired . | . . . . . Robots Built . | . . . . . Authchips . | . . . . . Time . | . . . . . Total Robot Build Rating . | . . . . . Part Schematics Acquired . | . . . . . Parts Built . | . . . . . Authchips . | . . . . . Time . | . . . . . Total Part Build Rating . | . . . . . Parts Repaired . | . . . . . Time . | . . . . . Parts Recycled . | . . . . . Recycled Matter . | . . . . . Retrieved Matter . | . . . . . Retrieved Components . | . . . . . Parts Scanalyzed . | . . . . . Part Schematics Acquired . | . . . . . Parts Damaged . | . . . . . Bothacking | -11 -10 -9 -9 -9 ------------ Run | Scr Mat Mat Min Exi Used RIF Installer . | . . . . . Robots Hacked . | . . . . . Non-combat . | . . . . . Combat . | . . . . . Robot Hacks Applied . | . . . . . Relay Couplers Released . | . . . . . Fabnet Peak Effective % . | . . . . . Robots Rewired . | . . . . . Allies Hacked . | . . . . . Hacks Repelled . | . . . . . Allies | -11 -10 -9 -9 -9 -------- Run | Scr Mat Mat Min Exi Total Allies 3 | . . . 3 . Largest Group 3 | . . . 3 2 Highest-Rated Group 40 | . . . 40 20 Highest-Rated Ally 16 | . . . 16 12 Total Orders 2 | . . . . 2 STAY 2 | . . . . 2 Ally Attacks 53 | . . . 52 1 Total Damage 568 | . . . 554 14 Kills 8 | . . . 8 . Allies Corrupted . | . . . . . Allies Melted . | . . . . . Intel | -11 -10 -9 -9 -9 ------- Run | Scr Mat Mat Min Exi Robot Analysis Total 1 | . . 1 . . Derelict Logs Recovered 2 | . . . 2 . Drone Launches . | . . . . . Drone Recoveries . | . . . . . Exploration | -11 -10 -9 -9 -9 ------------- Run | Scr Mat Mat Min Exi Turns Passed 2847 | 56 426 1199 678 488 Spaces Moved 1551 | 45 275 660 409 162 Core 13 | 9 . . . 4 Treads 4 | 2 . 2 . . Legs . | . . . . . Wheels 1534 | 34 275 658 409 158 Hover . | . . . . . Flight . | . . . . . Fastest Speed 50 | 50 100 145 155 145 Average Speed 146 | 97 131 147 155 162 Slowest Speed 850 | 160 145 320 155 850 Overloaded Moves . | . . . . . Propulsion Burnouts . | . . . . . Robots Hopped . | . . . . . Cave-ins Triggered . | . . . . . Exploration Rate (%) 48 | 3 42 57 92 48 Regions Visited 4 Branch Regions 2 Pre-discovered Areas 1 | . . . 1 . Known Exits Taken 2 | . . 1 1 . Unknown Exits Taken 2 | 1 1 . . . Scrap Searched 1 | . . . 1 . Spaces Dug 1 | . 1 . . . Terrain Destroyed 18 | . 1 . . 17 Melee 1 | . 1 . . . Projectile 1 | . . . . 1 AOE 16 | . . . . 16 Terrain Rammed . | . . . . . Walls Destroyed . | . . . . . Machines Disabled . | . . . . . Actions | -11 -10 -9 -9 -9 --------- Run | Scr Mat Mat Min Exi Total 1862 | 54 310 780 429 289 Wait 66 | . 12 14 8 32 Move 1547 | 44 274 659 408 162 Hop . | . . . . . Pick Up 37 | 4 4 24 1 4 Fast Attach 9 | 6 1 2 . . Attach 14 | . . 7 . 7 Detach 1 | . . 1 . . Swap 16 | . 4 8 . 4 Drop 24 | . . 15 . 9 Fire 145 | . 12 50 12 71 Melee 2 | . 2 . . . Ram 1 | . 1 . . . Kick . | . . . . . Crush . | . . . . . Escape Stasis . | . . . . . Rewire . | . . . . . Trap . | . . . . . Miscellaneous . | . . . . . Route ------- -11/Scrapyard -10/Materials -9/Materials (discovered 3 exits: *Mat x2 / *Min) -9/Mines (discovered 3 exits: *Mat / *Exi / *Zio) -9/Exiles History --------- Turn | Location | Event 7 | -11/Scrapyard | Discovered new exit (range 15) 57 | -11/Scrapyard | Entered Materials 289 | -10/Materials | Discovered new exit (range 7) 302 | -10/Materials | Build established: Mutant 483 | -10/Materials | Entered another Materials area 483 | -9/Materials | Evolved 2 slots: Utility x1, Weapon x1 817 | -9/Materials | Build established: Tank 932 | -9/Materials | Discovered new exit (range 15) 1016 | -9/Materials | Identified exit to Mines 1224 | -9/Materials | Central database locked down 1489 | -9/Materials | Discovered new exit (range 16) 1682 | -9/Materials | Entered Mines 1684 | -9/Mines | Assisted by bots powering up and referring to "LRC-V3" 1806 | -9/Mines | A Derelict revealed a hidden shortcut to a safe place 1812 | -9/Mines | Identified exit to Zion 2051 | -9/Mines | Learned location of Storage (-8) 2056 | -9/Mines | A weapon hastily lodged in a ceiling crevice suddenly fell to the ground 2159 | -9/Mines | Discovered new exit (range 5) 2168 | -9/Mines | Identified exit to Materials 2349 | -9/Mines | Deemed a non-threat by the Exiles lab entrance 2349 | -9/Mines | Discovered new exit (range 5) 2354 | -9/Mines | Identified exit to Exiles 2360 | -9/Mines | Entered Exiles 2360 | -9/Exiles | Accompanied by 2 allies 2409 | -9/Exiles | Met 8R-AWN 2427 | -9/Exiles | Met EX-HEX 2496 | -9/Exiles | Met EX-DEC 2563 | -9/Exiles | Attacked by the Exiles 2693 | -9/Exiles | Core integrity fell below 50% 2788 | -9/Exiles | Core integrity fell below 20% 2831 | -9/Exiles | Lost 13 parts (1p3n4u5w) 2848 | -9/Exiles | Destroyed by 8R-AWN with 8R-AWN's Boregun Last Messages --------------- 02833_ Acquired 10 matter. 02835_ Penetrated by HV Slug. 02835_ HV Slug penetrates Wall. 02835_ Penetrated by HV Slug. 02835_ Bore Cannon destroyed. 02835_ HV Slug penetrates Wall. 02839_ Penetrated by HV Slug. 02839_ HV Slug penetrates Earth. 02839_ Penetrated by HV Slug. 02839_ HV Slug penetrates Earth. 02841_ System corrupted: Matter fused (-8). 02842_ Acquired 3 matter. 02844_ Penetrated by HV Slug. 02844_ HV Slug penetrates Machine. 02844_ Machine disabled. 02844_ Penetrated by HV Slug. 02844_ HV Slug penetrates Machine. 02848_ Penetrated by HV Slug. 02848_ HV Slug penetrates Machine. 02848_ Penetrated by HV Slug. Map ----- +----------------------------------------------------+ | ?????????????????????????????????????????????????? | | ?????????????????????????????????????????????????? | | ?????????????????????????????????????????????????? | | ?????????????????????????????????????????????????? | | ?????????????????????????????????????????????????? | | ?????????????????????????????????????????????????? | | ?????????????????????????????????????????????????? | | ?????????????????????????????????????????????????? | | ?????????????????????????????????????????????????? | | ?????????????????????????????????????????????????? | | ?????????????????????????????????????????????????? | | ?????????????????????????????????????????????????? | | ?????????????????????????????????????????????????? | | ?????????????????????????????????????????????????? | | ??????????????????????????????#######????????????? | | ???????????????? ######???????#!!! "#????????????? | | ???????????????? #""#??????# "#????????????? | | ???????????????? ??????# "#????????????? | | ???????????????? #????## ""#????????????? | | ??????????????? #####" "#????????????? | | ???????????????# ##" ""?????????????? | | ????????????????# #" ##?????????????" | | ???????????????????# #?????????????" | | ??????????????????????# % ######?????????" | | ??????????????????????### g ##???????? | | ????????????????######## @ ##?????????" | | ????????????????# !!"" # #?????????# | | ????????????????#! # #####???### | | ????????????????#! = "#####X# | | ????????????????#! !;#### | | ????????????????# ! " ;;; #?#"# % | | ????????????????#######;;; ##### * | | ??????????????????????# # ###???### | | ?????????????????????? # # #???????### | | ?????????????????????# # ? #?????????## | | ????????????????????? ? #?##??????????## | | ?????????????????????### ???????????????##" | | ??????????????????????? ????????????????#""" | | ??????????????????????? ????????????????#" | | ??????????????????????? #???????????????#"" | | ?????????????????????? ????????????????#""" | | ?????????????????????? ???????????????#""" | | ?????????????????????? ????????????????#""" | | ????????????????????????????????????????"" | | ????????????????????????????????????????""" | | ????????????????????????????????????????"" | | ?????????????????????????????????????????"" | | ????????????????????????????????????????#"""" | | ?????????????????????????????????????????? | | ??????????????????????????????????????????? | +----------------------------------------------------+ Best States ------------- Heat Dissipation 42 Energy Generation 14 Energy Capacity 265 Matter Stores 300 Matter Capacity 300 Sight Range 16 Terrain Scan Density 10 Armor Coverage 150 Resistance: EM 15 Evasion (%) 40 Recoil Reduction 2 Item Schematics ----------------- None Robot Schematics ------------------ None Fabricated ------------ Nothing Alien Tech Used ----------------- None Achievements -------------- None Challenges ------------ None Game ------ Seed LobotomyLightBlade Manual? 0 Play Time 00:18:31 Cumulative 109.9 hours Start 2022.11.30 @ 01:24:28 End 2022.11.30 @ 01:41:56 Sessions 1 Manual Loads 0 Difficulty Rogue Special Mode None Game No. 200 Rogue 200 Adventurer 0 Explorer 0 Win Type - Total 2 Types 1/0/1/0/0/0/0/0/0 Lore% 63 Gallery% 69 Achievement% 51 Wizard Run 0 Options --------- ASCII 0 Keyboard 0 Movement Mouse Keybinds 0 Fullscreen 1 Font 18/SmallcapsGlow Map View 76x50 Tactical HUD 1 Map Filters NONE Filters NONE Steam 1 RUN: bddbc9c4-373b-4e04-9410-8f93e6d51798